bitfinex-derivatives/quotes_BTCF0:USTF0_20251118
["timestamp","ask_amount","ask_price","bid_price","bid_amount"]
[1763484518931,0.09949066,93390.0,93389.0,0.1071562]
[1763484519236,0.10222333,93390.0,93389.0,0.1071562]
[1763484519429,0.00489333,93390.0,93389.0,0.2014662]
[1763484519628,0.00489333,93390.0,93389.0,0.4633462]
[1763484519629,0.00416066,93390.0,93389.0,0.4633462]
[1763484519826,0.09733,93430.0,93429.0,0.1071095]
[1763484520028,0.09806267,93430.0,93429.0,0.1071095]
[1763484520223,0.09733,93424.0,93423.0,0.1071162]
[1763484520429,0.09733,93435.0,93434.0,0.1071046]
[1763484520836,0.09733,93435.0,93430.0,0.00219803]
[1763484521425,0.00073267,93440.0,93430.0,0.00219803]
[1763484521634,0.00073267,93440.0,93434.0,0.1071045]
[1763484522242,0.002,93435.0,93434.0,0.1071045]
[1763484522438,0.002,93435.0,93430.0,0.00219803]
[1763484522837,0.1071009,93438.0,93430.0,0.00219803]
[1763484523240,0.1071009,93438.0,93431.0,0.26164]
[1763484523436,0.09733,93438.0,93437.0,0.1071004]
[1763484523641,0.00273267,93440.0,93437.0,0.4679004]
[1763484523841,0.00273267,93440.0,93439.0,0.04562]
[1763484524041,0.00273267,93440.0,93439.0,0.09431]
[1763484524546,0.00073267,93440.0,93439.0,0.09431]
[1763484524749,0.000105,93444.0,93443.0,0.09431]
[1763484525349,0.3608,93454.0,93445.0,0.09431]
[1763484525545,0.3608,93466.0,93442.0,0.6224]
[1763484525745,0.00073267,93450.0,93447.0,0.1070896]
[1763484526250,0.3608,93474.0,93442.0,0.6224]
[1763484526251,0.01066737,93516.0,93480.0,0.00878]
[1763484526449,0.01066737,93516.0,93465.0,0.38023]
[1763484526450,0.09733,93509.0,93508.0,0.3608]
[1763484526650,0.09733,93488.0,93487.0,0.00016043]
[1763484526856,0.09733,93488.0,93472.0,0.3608]
[1763484526857,0.09733,93473.0,93472.0,0.3608]
[1763484527042,0.09733,93473.0,93447.0,0.26368472]
[1763484527043,0.09733,93452.0,93451.0,0.3608]
[1763484528556,0.09833,93452.0,93451.0,0.3608]
[1763484529154,0.10133,93452.0,93451.0,0.3608]
[1763484531855,0.208414,93452.0,93451.0,0.3608]
[1763484532450,0.09733,93441.0,93440.0,0.28781043]
[1763484532750,0.09733,93441.0,93440.0,0.21466043]
[1763484532957,0.1070943,93443.0,93432.0,0.3608]
[1763484533355,0.1071058,93433.0,93430.0,0.00219803]
[1763484533550,0.10720396,93432.0,93423.0,0.3608]
[1763484533744,0.1071119,93428.0,93423.0,0.3608]
[1763484533957,0.1071138,93426.0,93423.0,0.3608]
[1763484534152,1.5,93427.0,93423.0,0.3608]
[1763484535360,1.5,93427.0,93426.0,0.09431]
[1763484535653,1.5,93427.0,93424.0,0.02908]
[1763484535654,9.656e-05,93432.0,93431.0,0.09431]
[1763484535854,9.656e-05,93432.0,93431.0,0.562218]
[1763484537749,0.00016052,93441.0,93440.0,0.2733777]
[1763484537951,0.00016052,93441.0,93440.0,0.63637573]
[1763484538152,0.26332,93463.0,93447.0,0.1246]
[1763484538351,0.26332,93463.0,93440.0,0.67037803]
[1763484538352,0.35621,93463.0,93462.0,0.3608]
[1763484538552,1.85621,93463.0,93462.0,0.3608]
[1763484539556,1.80934,93463.0,93462.0,0.3608]
[1763484539855,0.003,93463.0,93462.0,0.4854]
[1763484540450,0.00016026,93472.0,93471.0,0.2316622]
[1763484540657,0.00016026,93472.0,93471.0,0.5924622]
[1763484540858,0.3608,93508.0,93485.0,0.2316462]
[1763484541160,0.3608,93508.0,93485.0,0.3608]
[1763484541161,0.04628742,93486.0,93485.0,0.3608]
[1763484541956,0.2001008,93481.0,93480.0,0.00219803]
[1763484542348,0.09305,93481.0,93480.0,0.00219803]
[1763484542555,0.00026742,93486.0,93480.0,0.00219803]
[1763484542762,0.1070489,93483.0,93480.0,0.00219803]
[1763484543156,0.00526742,93486.0,93480.0,0.10924893]
[1763484543363,0.00526742,93486.0,93483.0,0.1511078]
[1763484543563,0.1070127,93515.0,93509.0,0.048]
[1763484543759,0.3608,93517.0,93500.0,0.04406]
[1763484543760,0.3608,93517.0,93510.0,0.00219803]
[1763484543965,0.09305,93511.0,93510.0,0.00219803]
[1763484544255,0.2632,93522.0,93512.0,0.1070153]
[1763484544654,0.2632,93522.0,93510.0,0.00219803]
[1763484544655,0.2632,93522.0,93521.0,0.231605]
[1763484544860,0.3608,93541.0,93525.0,0.2316004]
[1763484545060,0.1069607,93560.0,93548.0,0.048]
[1763484545255,0.3608,93566.0,93536.0,0.04406]
[1763484545256,0.1069705,93552.0,93550.0,0.00219803]
[1763484545460,0.04602,93551.0,93550.0,0.00219803]
[1763484545655,1.5,93559.0,93550.0,0.00219803]
[1763484545962,1.5,93559.0,93558.0,0.3608]
[1763484546159,1.6069615,93559.0,93558.0,0.3608]
[1763484546464,1.5,93559.0,93558.0,0.3608]
[1763484546763,0.09305,93550.0,93549.0,0.3608]
[1763484547259,1.501,93559.0,93545.0,0.00016034]
[1763484547260,0.09305,93546.0,93545.0,0.00016034]
[1763484547854,0.4677729,93549.0,93537.0,0.3608]
[1763484547855,0.09305,93538.0,93537.0,0.3608]
[1763484548056,0.2000355,93538.0,93537.0,0.3608]
[1763484549762,0.1530055,93538.0,93537.0,0.3608]
[1763484550162,0.1540055,93538.0,93537.0,0.3608]
[1763484550568,0.001,93538.0,93537.0,0.4854]
[1763484550956,0.00015972,93547.0,93546.0,0.1246]
[1763484551156,0.00015972,93547.0,93546.0,0.5923764]
[1763484551567,0.00015972,93547.0,93546.0,0.4854]
[1763484551860,0.00015972,93547.0,93546.0,0.3608]
[1763484551861,0.09420972,93547.0,93546.0,0.3608]
[1763484552066,0.09420972,93547.0,93537.0,0.3608]
[1763484552258,0.2010355,93538.0,93537.0,0.3608]
[1763484552566,0.1530158,93529.0,93520.0,0.04406]
[1763484552760,0.201063,93514.0,93513.0,0.3608]
[1763484552955,0.1070303,93499.0,93496.0,0.3608]
[1763484553266,0.1070283,93501.0,93496.0,0.3608]
[1763484553459,0.1070283,93501.0,93500.0,0.05019803]
[1763484553655,0.1070283,93501.0,93500.0,0.00219803]
[1763484553861,0.1530483,93501.0,93500.0,0.00219803]
[1763484554056,0.00016043,93510.0,93504.0,0.107024]
[1763484554261,0.00016043,93510.0,93508.0,0.3608]
[1763484554262,0.1070187,93509.0,93508.0,0.3608]
[1763484554465,0.2010687,93509.0,93508.0,0.3608]
[1763484554870,0.10717883,93510.0,93508.0,0.3608]
[1763484555069,0.09405,93509.0,93508.0,0.3608]
[1763484555286,0.10717883,93510.0,93508.0,0.3608]
[1763484555458,0.10717883,93510.0,93496.0,0.4678332]
[1763484555459,0.1070254,93504.0,93500.0,0.00219803]
[1763484556261,0.09405,93501.0,93500.0,0.00219803]
[1763484556462,0.2010882,93492.0,93491.0,0.00016043]
[1763484557562,0.1070329,93497.0,93491.0,0.00016043]
[1763484557860,0.1070329,93497.0,93494.0,0.3608]
[1763484558056,0.26272,93501.0,93500.0,0.09206]
[1763484558263,0.1070279,93501.0,93500.0,0.00219803]
[1763484558670,0.26268,93503.0,93500.0,0.00219803]
[1763484558863,0.26268,93503.0,93502.0,0.048]
[1763484559271,0.09405,93501.0,93500.0,0.00219803]
[1763484560260,0.1070267,93502.0,93501.0,0.0662]
[1763484560473,0.1070267,93502.0,93501.0,0.13885]
[1763484560674,0.03128,93501.0,93500.0,0.00219803]
[1763484561370,0.26268,93503.0,93502.0,0.13885]
[1763484561571,0.00016043,93510.0,93509.0,0.13885]
[1763484561770,0.10717813,93510.0,93509.0,0.13885]
[1763484562472,0.00016043,93510.0,93509.0,0.2458688]
[1763484562663,0.00016043,93510.0,93507.0,0.3608]
[1763484562664,0.1069948,93530.0,93529.0,0.13885]
[1763484563365,0.1070005,93525.0,93524.0,0.3608]
[1763484563566,0.1698851,93521.0,93520.0,0.00219803]
[1763484563771,0.1698897,93517.0,93516.0,0.3608]
[1763484564164,0.1384497,93517.0,93516.0,0.3608]
[1763484564675,0.26248,93519.0,93518.0,0.13885]
[1763484565567,0.26248,93519.0,93516.0,0.4678107]
[1763484565568,0.1070085,93518.0,93516.0,0.3608]
[1763484565875,0.03144,93517.0,93516.0,0.3608]
[1763484566379,0.03144,93517.0,93486.0,0.1070444]
[1763484566380,0.1699332,93479.0,93478.0,0.3608]
[1763484566563,0.1699332,93479.0,93464.0,0.07560449]
[1763484566564,0.1185635,93470.0,93464.0,0.05612331]
[1763484566868,0.1185635,93470.0,93460.0,0.00219803]
[1763484566869,0.00575,93461.0,93460.0,0.00219803]
[1763484567061,0.1070635,93470.0,93446.0,0.13516754]
[1763484567062,0.1070898,93447.0,93446.0,0.13516754]
[1763484567672,0.4678898,93447.0,93446.0,0.13516754]
[1763484568068,0.26272,93451.0,93450.0,0.14038803]
[1763484569174,0.1070558,93477.0,93455.0,0.2452706]
[1763484569374,0.3608,93486.0,93470.0,0.00219803]
[1763484569375,0.1070595,93474.0,93470.0,0.00219803]
[1763484569674,0.1070595,93474.0,93473.0,0.13819]
[1763484569871,0.1070595,93474.0,93473.0,0.06949]
[1763484570071,0.1070595,93474.0,93473.0,0.13819]
[1763484571165,0.3608,93477.0,93476.0,0.13819]
[1763484571369,0.1070554,93477.0,93476.0,0.13819]
[1763484571973,0.4678554,93477.0,93474.0,0.03925]
[1763484573674,0.1084823,93471.0,93470.0,0.00219803]
[1763484573876,0.1084823,93471.0,93464.0,0.00016052]
[1763484573877,0.1084892,93465.0,93464.0,0.00016052]
[1763484574072,0.7318492,93465.0,93464.0,0.00016052]
[1763484574581,0.7318492,93465.0,93440.0,0.1475271]
[1763484574582,0.1070898,93447.0,93446.0,0.36106754]
[1763484574881,0.4678783,93457.0,93456.0,0.13819]
[1763484575181,0.1070703,93464.0,93460.0,0.00219803]
[1763484575773,0.00071,93461.0,93460.0,0.00219803]
[1763484575975,0.1070703,93464.0,93460.0,0.00219803]
[1763484576371,0.1070716,93463.0,93453.0,0.00016052]
[1763484576579,0.4678818,93454.0,93453.0,0.06965052]
[1763484576777,0.1070818,93454.0,93453.0,0.06965052]
[1763484577171,0.3695618,93454.0,93453.0,0.06965052]
[1763484577882,0.3695618,93454.0,93453.0,0.00016052]
[1763484578071,0.3702718,93454.0,93453.0,0.00016052]
[1763484578879,0.3709818,93454.0,93453.0,0.00016052]
[1763484579680,0.3702718,93454.0,93453.0,0.00016052]
[1763484580879,0.1085098,93447.0,93446.0,0.00026754]
[1763484582289,0.1085098,93447.0,93446.0,0.00126754]
[1763484582477,0.1070955,93442.0,93441.0,0.00010153]
[1763484582673,0.34365904,93442.0,93441.0,0.00010153]
[1763484582980,0.34365904,93442.0,93437.0,0.00016052]
[1763484582981,0.1061001,93438.0,93437.0,2e-08]
[1763484583176,0.1061001,93438.0,93399.0,0.3608]
[1763484583177,0.1071357,93407.0,93399.0,0.3608]
[1763484583377,0.1071357,93407.0,93406.0,5e-08]
[1763484583378,0.3694557,93407.0,93406.0,5e-08]
[1763484583977,0.36955227,93407.0,93406.0,5e-08]
[1763484584677,0.36855227,93407.0,93406.0,5e-08]
[1763484585181,0.107146,93398.0,93397.0,0.00016052]
[1763484585484,0.1071678,93379.0,93378.0,0.43029]
[1763484585690,0.10726563,93379.0,93378.0,0.43029]
[1763484585893,9.783e-05,93379.0,93378.0,0.49899]
[1763484586678,9.783e-05,93379.0,93378.0,0.13819]
[1763484587387,0.00016062,93388.0,93387.0,0.2453486]
[1763484587581,0.26232,93402.0,93401.0,0.13819]
[1763484587783,0.1071301,93412.0,93411.0,0.13819]
[1763484587983,0.107123,93418.0,93415.0,0.06949]
[1763484588286,0.3608,93419.0,93410.0,0.00219803]
[1763484588287,0.1071311,93411.0,93410.0,0.00219803]
[1763484588482,0.1071258,93416.0,93410.0,0.14038803]
[1763484588687,0.1071258,93416.0,93415.0,0.06949]
[1763484588980,0.1071311,93411.0,93410.0,0.00219803]
[1763484589186,0.1071271,93415.0,93414.0,0.06949]
[1763484589388,0.26236,93417.0,93416.0,0.13819]
[1763484590289,0.00016062,93420.0,93419.0,0.13819]
[1763484591690,0.3608,93439.0,93438.0,0.13819]
[1763484592282,0.1070871,93450.0,93449.0,0.13819]
[1763484592489,0.3693271,93450.0,93449.0,0.13819]
[1763484592689,0.26224,93450.0,93449.0,0.13819]
[1763484593790,0.1070808,93455.0,93450.0,0.00219803]
[1763484593991,0.10723653,93459.0,93458.0,0.13819]
[1763484594182,0.36939653,93459.0,93458.0,0.13819]
[1763484594585,0.36939653,93459.0,93458.0,0.06949]
[1763484595191,0.36939653,93459.0,93456.0,0.03925]
[1763484596294,0.26232053,93459.0,93458.0,0.13819]
[1763484598898,0.1070663,93468.0,93467.0,0.13629]
[1763484599986,0.26196,93476.0,93470.0,0.00219803]
[1763484599987,0.1070611,93472.0,93470.0,0.00219803]
[1763484601105,0.1070737,93461.0,93460.0,0.00219803]
[1763484601296,0.3608,93465.0,93464.0,0.13629]
[1763484601492,0.1070578,93475.0,93474.0,0.13629]
[1763484601689,0.1070565,93476.0,93470.0,0.00219803]
[1763484601895,0.1070622,93471.0,93470.0,0.00219803]
[1763484602288,0.00016053,93477.0,93476.0,0.13629]
[1763484602488,0.1070438,93488.0,93485.0,0.13629]
[1763484603100,0.1070391,93492.0,93485.0,0.13629]
[1763484603299,0.26196,93496.0,93485.0,0.13629]
[1763484603495,0.00015998,93495.0,93485.0,0.13629]
[1763484603799,0.1070427,93488.0,93485.0,0.13629]
[1763484604801,0.1070679,93466.0,93465.0,0.03739]
[1763484605194,0.26207998,93475.0,93465.0,0.03739]
[1763484605389,0.1070679,93466.0,93465.0,0.10854]
[1763484605600,0.1070736,93461.0,93460.0,0.00219803]
[1763484605793,0.4678736,93461.0,93460.0,0.00219803]
[1763484607001,0.26192,93464.0,93463.0,0.13629]
[1763484608397,0.1070689,93466.0,93463.0,0.13629]
[1763484608594,0.1070743,93461.0,93460.0,0.00219803]
[1763484608789,0.4678743,93461.0,93460.0,0.00219803]
[1763484609212,0.3608,93470.0,93469.0,0.13629]
[1763484609504,0.3608,93483.0,93474.0,0.13629]
[1763484609691,0.1070561,93477.0,93474.0,0.13629]
[1763484610093,0.26188,93479.0,93474.0,0.2433494]
[1763484610294,0.1070418,93490.0,93485.0,0.13629]
[1763484610502,0.1070453,93487.0,93485.0,0.13629]
[1763484610796,0.1070514,93481.0,93480.0,0.00219803]
[1763484612305,0.3608,93482.0,93481.0,0.07115]
[1763484612504,0.4678502,93482.0,93481.0,0.13629]
[1763484613102,0.3608,93482.0,93481.0,0.13629]
[1763484613298,0.26184,93485.0,93484.0,0.2433381]
[1763484613499,0.26184,93485.0,93484.0,0.13629]
[1763484614200,0.1070515,93481.0,93480.0,0.00219803]
[1763484614414,0.26184,93485.0,93484.0,0.13629]
[1763484614900,0.00026742,93486.0,93485.0,0.13629]
[1763484615903,6.317e-05,93486.0,93485.0,0.13629]
[1763484617508,0.26176,93499.0,93498.0,0.13629]
[1763484617704,0.1070267,93503.0,93502.0,0.13629]
[1763484618904,0.1070247,93505.0,93504.0,0.17368]
[1763484620009,0.10996676,93505.0,93504.0,0.17368]
[1763484620308,0.00294206,93505.0,93504.0,0.17368]
[1763484620517,0.00394206,93505.0,93504.0,0.17368]
[1763484620809,0.11096616,93505.0,93504.0,0.17368]
[1763484621315,0.11096616,93505.0,93504.0,0.03739]
[1763484622708,0.11096616,93505.0,93500.0,0.00219803]
[1763484622709,0.1070286,93501.0,93500.0,0.00219803]
[1763484622910,0.10997066,93501.0,93500.0,0.00219803]
[1763484623405,0.00294206,93501.0,93500.0,0.11632803]
[1763484623607,2.06e-06,93501.0,93500.0,0.47712803]
[1763484623798,0.4677989,93527.0,93526.0,0.11413]
[1763484624000,0.62228,93529.0,93528.0,0.11413]
[1763484625012,0.26148,93529.0,93528.0,0.11413]
[1763484626207,0.62328,93529.0,93528.0,0.05568]
[1763484626413,0.1070057,93521.0,93520.0,0.15083]
[1763484626607,0.1070057,93521.0,93520.0,0.03889803]
[1763484626908,0.1070029,93524.0,93523.0,0.05845]
[1763484627119,0.1070029,93524.0,93523.0,0.11413]
[1763484627904,0.26248,93529.0,93523.0,0.3608]
[1763484628104,0.26248,93529.0,93528.0,0.11303]
[1763484629410,0.26148,93529.0,93528.0,0.11303]
[1763484629600,0.26148,93529.0,93523.0,0.3608]
[1763484629601,0.1070023,93524.0,93523.0,0.3608]
[1763484629806,0.1070023,93524.0,93523.0,0.47383]
[1763484630005,0.10847361,93524.0,93523.0,0.47383]
[1763484630209,0.00147131,93524.0,93523.0,0.47383]
[1763484630609,0.00147131,93524.0,93523.0,0.4163]
[1763484630914,0.00147131,93524.0,93520.0,0.03873573]
[1763484630915,0.1070035,93523.0,93520.0,0.03873573]
[1763484631117,0.1070058,93521.0,93520.0,0.03873573]
[1763484631708,0.1070092,93518.0,93517.0,0.00016044]
[1763484631908,0.7290092,93518.0,93517.0,0.00016044]
[1763484632107,0.73048051,93518.0,93517.0,0.00016044]
[1763484633515,0.1070355,93495.0,93494.0,0.1742]
[1763484633714,0.1070355,93495.0,93485.0,0.3608]
[1763484633715,0.08133712,93495.0,93490.0,0.00219803]
[1763484633908,0.26112,93494.0,93493.0,0.11303]
[1763484634108,0.3608,93506.0,93505.0,0.05402869]
[1763484634109,0.4678229,93506.0,93505.0,0.05402869]
[1763484634615,0.4678229,93506.0,93505.0,0.11155869]
[1763484635504,0.4678229,93506.0,93505.0,0.05402869]
[1763484636418,0.4678229,93506.0,93500.0,0.00219803]
[1763484636419,0.10702,93509.0,93508.0,0.11303]
[1763484637218,0.1070332,93497.0,93496.0,0.00016044]
[1763484637709,0.1070332,93497.0,93496.0,0.05566044]
[1763484637912,0.1070332,93497.0,93496.0,0.00016044]
[1763484639613,0.3608,93517.0,93500.0,0.00219803]
[1763484639813,0.3608,93517.0,93506.0,0.03342]
[1763484640119,0.1070213,93508.0,93506.0,0.03342]
[1763484640811,0.1070213,93508.0,93507.0,0.0555]
[1763484642015,0.3681413,93508.0,93507.0,0.0555]
[1763484643819,0.3681413,93508.0,93506.0,0.03342]
[1763484644314,0.3681413,93508.0,93507.0,0.11303]
[1763484644711,0.36961289,93508.0,93507.0,0.11303]
[1763484645308,0.26259159,93508.0,93507.0,0.11303]
[1763484646319,0.00147159,93508.0,93507.0,0.11303]
[1763484648627,0.1069858,93539.0,93507.0,0.11303]
[1763484648628,0.3608,93550.0,93549.0,0.11303]
[1763484649522,0.106967,93555.0,93554.0,0.0555]
[1763484649720,0.167037,93555.0,93554.0,0.0555]
[1763484649925,0.2268614,93551.0,93550.0,0.05769803]
[1763484650114,0.2280745,93551.0,93550.0,0.05769803]
[1763484650315,0.2268671,93546.0,93545.0,0.00016034]
[1763484650514,0.8487071,93546.0,93545.0,0.00016034]
[1763484651217,0.4891202,93546.0,93545.0,0.00016034]
[1763484652179,0.4891202,93546.0,93545.0,0.05566034]
[1763484652333,0.4891202,93546.0,93545.0,0.00016034]
[1763484653725,0.2622531,93546.0,93545.0,0.11319034]
[1763484653915,0.0012131,93546.0,93545.0,0.11319034]
[1763484654119,0.2622131,93546.0,93545.0,0.11319034]
[1763484654316,0.4677514,93569.0,93568.0,0.0555]
[1763484654317,0.3608,93569.0,93568.0,0.0555]
[1763484654521,0.42087,93569.0,93568.0,0.11303]
[1763484654722,0.68187,93569.0,93568.0,0.11303]
[1763484655024,0.261,93569.0,93568.0,0.11303]
[1763484655215,0.3608,93578.0,93577.0,0.11303]
[1763484655420,0.4677405,93578.0,93577.0,0.11303]
[1763484655718,0.1069508,93569.0,93568.0,0.11319034]
[1763484656114,0.1079508,93569.0,93568.0,0.11319034]
[1763484656524,0.2278408,93569.0,93568.0,0.00016034]
[1763484656722,0.2268408,93569.0,93568.0,0.00016034]
[1763484656921,0.2268408,93569.0,93568.0,0.05566034]
[1763484657723,0.2268408,93569.0,93568.0,0.00016034]
[1763484658315,0.1069508,93569.0,93568.0,0.10979034]
[1763484658529,0.2074508,93569.0,93568.0,0.00016034]
[1763484658726,0.1567156,93556.0,93555.0,0.47043]
[1763484659122,0.1069656,93556.0,93555.0,0.47043]
[1763484661521,0.1069656,93556.0,93546.0,0.00016034]
[1763484661522,0.2159159,93547.0,93546.0,0.00016034]
[1763484661845,0.2159159,93547.0,93546.0,0.36080004]
[1763484662218,0.2159159,93547.0,93546.0,4e-08]
[1763484662525,0.1069713,93551.0,93550.0,0.00219803]
[1763484662726,0.3608,93573.0,93550.0,0.00219803]
[1763484663035,0.1069633,93559.0,93558.0,0.47043]
[1763484663623,0.10711529,93565.0,93564.0,0.10963]
[1763484664433,0.00015999,93565.0,93564.0,0.10963]
[1763484664633,0.3608,93581.0,93562.0,0.03296]
[1763484664634,0.467737,93581.0,93580.0,0.10963]
[1763484664821,0.467737,93581.0,93580.0,0.11182803]
[1763484665229,0.576677,93581.0,93580.0,0.11182803]
[1763484665533,0.576677,93581.0,93580.0,0.00219803]
[1763484665729,0.2158873,93572.0,93571.0,0.00016034]
[1763484668122,0.2168873,93572.0,93571.0,0.00016034]
[1763484669723,0.10894,93553.0,93534.0,0.3608]
[1763484669923,0.10894,93551.0,93550.0,0.00219803]
[1763484670128,0.10894,93551.0,93550.0,0.11182803]
[1763484670321,0.1069702,93552.0,93551.0,0.10963]
[1763484670522,0.2159102,93552.0,93550.0,0.36299803]
[1763484670727,0.2159102,93552.0,93533.0,0.3608]
[1763484670728,0.10894,93541.0,93540.0,0.00219803]
[1763484671038,0.1069702,93552.0,93517.0,0.3608]
[1763484671039,0.02559,93535.0,93523.0,0.05517]
[1763484671332,0.106992,93533.0,93532.0,0.10963]
[1763484671738,0.1069874,93537.0,93532.0,0.10963]
[1763484672130,0.1069885,93537.0,93533.0,0.05517]
[1763484672431,0.00016034,93538.0,93533.0,0.05517]
[1763484672432,0.1069908,93534.0,93533.0,0.05517]
[1763484672737,0.2159308,93534.0,93533.0,0.05517]
[1763484673031,0.10894,93533.0,93532.0,0.001]
[1763484673530,0.2159456,93521.0,93520.0,0.00016034]
[1763484673734,0.4768256,93521.0,93520.0,0.00235837]
[1763484673936,0.8376256,93521.0,93520.0,0.00016034]
[1763484674134,0.2159594,93509.0,93508.0,0.3608]
[1763484674338,0.2159594,93509.0,93496.0,0.0330488]
[1763484674339,0.05504,93497.0,93496.0,8.88e-05]
[1763484674532,0.10894,93497.0,93496.0,0.0552588]
[1763484674729,0.1070277,93502.0,93500.0,0.00219803]
[1763484675233,0.05504,93501.0,93500.0,0.00219803]
[1763484675435,0.05404,93501.0,93500.0,0.00219803]
[1763484675829,0.05404,93501.0,93500.0,0.05736803]
[1763484676031,0.00016042,93510.0,93509.0,0.10963]
[1763484676229,0.10910042,93510.0,93509.0,0.3608]
[1763484676427,0.21611862,93510.0,93509.0,0.3608]
[1763484677024,0.2159685,93501.0,93500.0,0.002]
[1763484677228,0.10894,93501.0,93500.0,0.00419803]
[1763484677424,0.00016042,93510.0,93501.0,0.1070285]
[1763484677630,0.10910042,93510.0,93509.0,0.3608]
[1763484677832,0.05504,93502.0,93501.0,0.3608]
[1763484678229,0.10794,93502.0,93501.0,0.3608]
[1763484678424,0.10794,93502.0,93501.0,0.41597]
[1763484678830,0.36809962,93510.0,93501.0,0.47043]
[1763484679135,0.26108042,93510.0,93501.0,0.47043]
[1763484679327,0.05504,93502.0,93501.0,0.47143]
[1763484679526,0.1070264,93503.0,93501.0,0.47143]
[1763484679727,0.05504,93502.0,93501.0,0.47143]
[1763484680229,0.10894,93502.0,93501.0,0.3628]
[1763484680829,0.10894,93502.0,93501.0,0.3608]
[1763484681130,0.10894,93502.0,93501.0,0.3618]
[1763484681931,0.00016042,93510.0,93501.0,0.46142]
[1763484682133,0.1070227,93507.0,93505.0,0.04948]
[1763484682338,0.04957,93506.0,93505.0,0.04948]
[1763484682634,0.09820042,93510.0,93501.0,0.3618]
[1763484682843,0.1070228,93506.0,93501.0,0.3618]
[1763484683231,0.1070259,93504.0,93503.0,0.09962]
[1763484683430,0.09804,93502.0,93501.0,0.3618]
[1763484683633,0.09804,93502.0,93501.0,0.41128]
[1763484683834,0.09804,93502.0,93501.0,0.3618]
[1763484684641,0.09804,93502.0,93501.0,0.3608]
[1763484685238,0.3679422,93507.0,93501.0,0.46042]
[1763484685427,0.00016042,93510.0,93509.0,0.09962]
[1763484685633,0.26112042,93510.0,93509.0,0.09962]
[1763484685837,0.35916042,93510.0,93509.0,0.09962]
[1763484686337,0.35916042,93510.0,93509.0,0.46042]
[1763484686535,0.00016042,93510.0,93509.0,0.48282]
[1763484688147,0.10717862,93510.0,93509.0,0.48282]
[1763484688340,0.20701862,93510.0,93509.0,0.3608]
[1763484688644,0.20701862,93510.0,93496.0,8.88e-05]
[1763484688645,0.2092831,93497.0,93496.0,8.88e-05]
[1763484689047,0.2092831,93497.0,93496.0,0.0478688]
[1763484689947,0.10225,93497.0,93496.0,0.0967188]
[1763484690146,0.10225,93497.0,93496.0,8.88e-05]
[1763484690846,0.10225,93497.0,93496.0,0.0967188]
[1763484691046,0.10225,93497.0,93496.0,0.0977188]
[1763484692050,0.26096,93507.0,93496.0,0.0977188]
[1763484692241,0.2092779,93502.0,93501.0,0.09663]
[1763484692744,0.10225,93501.0,93500.0,0.00219803]
[1763484693550,0.2092832,93497.0,93496.0,0.0010888]
[1763484694038,0.2092877,93493.0,93492.0,0.00016042]
[1763484694245,0.2093072,93476.0,93475.0,0.3608]
[1763484694443,0.4702672,93476.0,93475.0,0.3608]
[1763484694841,0.4692672,93476.0,93475.0,0.3608]
[1763484695145,0.46936796,93476.0,93475.0,0.3608]
[1763484695352,0.2093129,93471.0,93470.0,0.00219803]
[1763484697250,0.2397901,93456.0,93455.0,0.3608]
[1763484697547,0.2093393,93448.0,93447.0,0.3608]
[1763484697856,0.10225,93447.0,93430.0,0.3608]
[1763484698148,0.10225,93447.0,93440.0,0.1070985]
[1763484698350,0.2083404,93447.0,93446.0,0.09689754]
[1763484698650,0.1070835,93454.0,93450.0,0.00219803]
[1763484698953,0.00028117,93456.0,93455.0,0.09663]
[1763484700045,0.00028117,93456.0,93450.0,0.36299803]
[1763484700046,0.10225,93451.0,93450.0,0.36299803]
[1763484700247,0.10225,93447.0,93446.0,0.00026754]
[1763484700548,0.00028117,93456.0,93455.0,0.04778]
[1763484700743,0.00028117,93456.0,93455.0,0.09663]
[1763484701350,0.1070734,93462.0,93461.0,0.09663]
[1763484701645,0.261,93464.0,93463.0,0.203702]
[1763484701838,0.1070706,93465.0,93464.0,0.09663]
[1763484702243,0.00016051,93474.0,93464.0,0.09663]
[1763484702546,0.10722001,93474.0,93473.0,0.09663]
[1763484703051,0.00016051,93474.0,93473.0,0.09663]
[1763484704749,0.10241051,93474.0,93473.0,0.09663]
[1763484706155,0.00016051,93474.0,93473.0,0.09663]
[1763484706952,0.10225,93472.0,93471.0,0.3608]
[1763484707147,0.2093137,93471.0,93470.0,0.00219803]
[1763484707349,0.5701137,93471.0,93470.0,0.00219803]
[1763484708555,0.5711137,93471.0,93470.0,0.00219803]
[1763484710056,0.2399501,93456.0,93452.0,0.3608]
[1763484710256,0.5009501,93456.0,93450.0,0.00219803]
[1763484710448,0.2093404,93447.0,93446.0,0.00026754]
[1763484713049,0.4703404,93447.0,93446.0,0.00026754]
[1763484716154,0.2093507,93438.0,93437.0,0.00016051]
[1763484716350,0.8311907,93438.0,93437.0,0.00016051]
[1763484716557,0.2093679,93423.0,93422.0,0.36093844]
[1763484716861,0.10225,93423.0,93422.0,0.36093844]
[1763484717355,0.11818,93423.0,93422.0,0.00013844]
[1763484718052,0.11818,93423.0,93422.0,0.00113844]
[1763484719557,0.11818,93423.0,93422.0,0.00013844]
[1763484719763,0.11918,93423.0,93422.0,0.00013844]
[1763484720165,0.11818,93423.0,93422.0,0.00013844]
[1763484720374,0.11918,93423.0,93422.0,0.00013844]
[1763484720561,0.10325,93423.0,93422.0,0.09558844]
[1763484720857,0.35325,93423.0,93422.0,0.05112844]
[1763484721064,0.35425,93423.0,93422.0,0.00013844]
[1763484721455,0.35325,93423.0,93422.0,0.00013844]
[1763484721758,0.35325,93423.0,93422.0,0.09558844]
[1763484721759,0.35425,93423.0,93422.0,0.09558844]
[1763484722264,0.35425,93423.0,93422.0,0.00013844]
[1763484722455,0.09321,93423.0,93422.0,0.09558844]
[1763484722656,0.3608,93435.0,93434.0,0.09545]
[1763484722850,0.1071039,93436.0,93434.0,0.09545]
[1763484723057,0.09221,93435.0,93434.0,0.09545]
[1763484723256,0.26104,93441.0,93440.0,0.09545]
[1763484723460,0.3608,93471.0,93446.0,0.09545]
[1763484723765,0.1070571,93477.0,93476.0,0.09545]
[1763484723966,0.1552671,93477.0,93476.0,0.09545]
[1763484724558,0.1552706,93473.0,93472.0,0.3608]
[1763484724958,0.1070571,93477.0,93472.0,0.45625]
[1763484725259,0.1552661,93477.0,93476.0,0.04446]
[1763484725456,0.26104,93478.0,93476.0,0.09545]